bitfinex/quotes_SOLUSD_20240613
["timestamp","ask_amount","ask_price","bid_price","bid_amount"]
[1718238068230,0.17,154.13,154.04,15.0647]
[1718238068231,8.09,154.08,154.04,15.0647]
[1718238068440,8.09,154.07,154.04,15.0647]
[1718238069245,0.17,154.12,154.04,15.0647]
[1718238069246,8.09,154.09,154.04,15.0647]
[1718238069428,0.17,154.14,154.04,15.0647]
[1718238069628,8.09,154.13,154.07,8.09]
[1718238069856,8.09,154.12,154.06,8.09]
[1718238071351,8.09,154.09,154.04,15.0647]
[1718238071848,8.09,154.09,154.04,23.1547]
[1718238072058,0.17,154.14,154.04,15.0647]
[1718238072352,8.09,154.12,154.06,8.09]
[1718238072646,20.0,154.15,154.04,15.0647]
[1718238072853,8.09,154.13,154.07,8.09]
[1718238073529,23.2313,154.2,154.1,8.09]
[1718238073755,8.09,154.16,154.1,8.09]
[1718238078144,259.6,154.22,154.06,6.6065]
[1718238078145,259.6,154.22,154.08,8.09]
[1718238078349,8.09,154.2,154.15,8.09]
[1718238078659,8.09,154.2,154.14,8.09]
[1718238079557,8.09,154.19,154.13,8.09]
[1718238080246,0.17,154.2,154.13,8.09]
[1718238080447,8.09,154.19,154.13,8.09]
[1718238083981,8.09,154.19,154.07,16.5678]
[1718238083982,8.09,154.16,154.07,16.2278]
[1718238084154,8.09,154.16,154.1,8.09]
[1718238084545,8.09,154.16,154.07,16.2278]
[1718238084546,8.09,154.16,154.11,8.09]
[1718238084850,8.09,154.17,154.11,8.09]
[1718238085065,8.09,154.17,154.12,8.09]
[1718238085369,45.17,154.21,154.14,8.09]
[1718238085370,0.17,154.21,154.14,8.09]
[1718238085594,8.43,154.21,154.15,8.09]
[1718238086167,8.09,154.2,154.14,8.09]
[1718238086545,8.09,154.19,154.09,0.17]
[1718238086877,8.09,154.19,154.13,8.09]
[1718238088051,8.09,154.17,154.11,8.09]
[1718238088275,8.09,154.15,154.1,8.09]
[1718238089555,8.09,154.15,154.07,16.2278]
[1718238089747,0.34,154.18,154.07,16.2278]
[1718238089748,8.09,154.13,154.07,16.2278]
[1718238089947,8.09,154.12,154.07,16.2278]
[1718238090153,8.09,154.14,154.08,8.09]
[1718238091675,0.68,154.16,154.08,8.09]
[1718238091865,8.09,154.14,154.08,8.09]
[1718238092372,53.6,154.16,154.1,8.09]
[1718238092555,53.6,154.16,154.07,16.2278]
[1718238092556,0.17,154.16,154.11,8.09]
[1718238092761,8.09,154.17,154.11,8.09]
[1718238092960,275.2069,154.22,154.12,8.09]
[1718238093266,8.09,154.19,154.13,8.09]
[1718238093494,15.6069,154.22,154.13,8.09]
[1718238093788,15.6069,154.22,154.14,8.09]
[1718238093999,8.09,154.2,154.14,8.09]
[1718238094287,8.09,154.2,154.15,8.09]
[1718238094503,6.0208,154.24,154.16,8.09]
[1718238094662,8.09,154.21,154.16,8.09]
[1718238095364,8.09,154.23,154.17,8.09]
[1718238095863,8.09,154.23,154.18,8.09]
[1718238096270,8.09,154.23,154.14,16.0653]
[1718238096271,8.09,154.23,154.17,8.09]
[1718238096974,8.09,154.23,154.14,16.0653]
[1718238096975,0.8413107,154.25,154.14,16.0653]
[1718238097780,0.34,154.24,154.14,16.0653]
[1718238098587,45.8413107,154.25,154.14,16.0653]
[1718238098588,0.8413107,154.25,154.14,16.0653]
[1718238101599,0.8413107,154.25,154.15,0.17]
[1718238102195,0.8413107,154.25,154.15,0.34]
[1718238102489,0.8413107,154.25,154.17,6.4193]
[1718238106111,0.17,154.24,154.17,6.4193]
[1718238106487,0.68,154.24,154.17,6.4193]
[1718238109724,0.68,154.24,154.14,16.0653]
[1718238111518,0.17,154.24,154.13,6.4047]
[1718238111690,24.23,154.22,154.13,6.4047]
[1718238111891,45.0,154.21,154.13,6.4047]
[1718238113614,0.34,154.2,154.13,6.4047]
[1718238115918,0.17,154.19,154.13,6.4047]
[1718238116434,0.34,154.19,154.13,6.4047]
[1718238116600,0.34,154.18,154.13,6.4047]
[1718238116794,8.09,154.15,154.1,15.4439]
[1718238117013,8.09,154.15,154.1,23.5339]
[1718238117888,8.09,154.14,154.1,15.4439]
[1718238118200,8.09,154.11,154.06,15.966]
[1718238120039,8.09,154.11,154.06,24.056]
[1718238120399,8.09,154.12,154.06,24.056]
[1718238120795,0.17,154.15,154.06,15.966]
[1718238121035,45.68,154.15,154.06,15.966]
[1718238127134,13.6311,154.18,154.06,15.966]
[1718238127336,13.6311,154.22,154.06,15.966]
[1718238127507,24.27,154.21,154.06,15.966]
[1718238128537,45.51,154.2,154.06,15.966]
[1718238128743,0.17,154.18,154.06,15.966]
[1718238129041,45.51,154.18,154.06,15.966]
[1718238129341,0.17,154.17,154.06,15.966]
[1718238129633,0.51,154.17,154.06,15.966]
[1718238131420,0.17,154.2,154.09,15.0723]
[1718238131625,20.34,154.2,154.09,15.0723]
[1718238131826,0.34,154.2,154.09,15.0723]
[1718238132035,0.17,154.2,154.09,15.0723]
[1718238132844,45.34,154.2,154.09,15.0723]
[1718238133423,0.34,154.19,154.09,15.0723]
[1718238133642,0.34,154.18,154.09,15.0723]
[1718238135545,0.34,154.17,154.09,15.0723]
[1718238136631,0.34,154.16,154.09,15.0723]
[1718238137031,0.34,154.15,154.09,15.0723]
[1718238138448,0.34,154.14,154.09,15.0723]
[1718238139125,0.34,154.13,154.09,15.0723]
[1718238142830,8.09,154.11,154.09,15.0723]
[1718238143427,0.17,154.13,154.09,15.0723]
[1718238143729,8.09,154.11,154.09,15.0723]
[1718238144742,8.09,154.12,154.09,15.0723]
[1718238148137,8.09,154.11,154.09,15.0723]
[1718238153026,0.17,154.14,154.09,15.0723]
[1718238153254,8.09,154.11,154.09,15.0723]
[1718238155038,0.17,154.13,154.09,15.0723]
[1718238155237,8.09,154.1,154.09,15.0723]
[1718238157353,0.51,154.13,154.09,15.0723]
[1718238157560,8.09,154.1,154.09,15.0723]
[1718238158775,8.09,154.1,154.04,16.2856]
[1718238159065,8.09,154.06,154.04,16.2856]
[1718238159242,8.09,154.05,154.04,16.2856]
[1718238160141,8.43,154.05,154.0,16.2856]
[1718238160449,8.09,154.01,154.0,16.2856]
[1718238161058,8.09,154.02,154.0,16.2856]
[1718238162373,0.34,154.05,154.0,16.2856]
[1718238162540,8.09,154.02,154.0,16.2856]
[1718238165877,0.17,154.06,154.0,16.2856]
[1718238166075,8.09,154.04,154.0,16.2856]
[1718238166771,19.47,154.14,154.01,8.09]
[1718238167080,8.09,154.06,154.0,24.3756]
[1718238167656,8.09,154.05,154.0,16.2856]
[1718238168271,0.17,154.11,154.0,16.2856]
[1718238168571,28.09,154.12,154.02,8.09]
[1718238168871,8.09,154.09,154.03,8.09]
[1718238169261,20.0638,154.15,154.0,16.2856]
[1718238169584,8.09,154.07,154.01,8.09]
[1718238169966,8.09,154.08,154.01,8.09]
[1718238170572,20.0638,154.15,154.02,8.09]
[1718238170756,8.09,154.08,154.02,8.09]
[1718238171171,8.09,154.09,154.03,8.09]
[1718238171961,32.36,154.16,154.04,21.2179]
[1718238172254,8.09,154.13,154.08,8.09]
[1718238172469,259.6,154.22,154.08,8.09]
[1718238172679,8.09,154.14,154.08,8.09]
[1718238173263,280.8179,154.22,154.09,6.0146]
[1718238173459,259.6,154.22,154.09,14.1046]
[1718238173663,8.09,154.15,154.09,14.1046]
[1718238174155,274.7062,154.22,154.09,14.1046]
[1718238174467,8.09,154.16,154.1,8.09]
[1718238175482,8.09,154.15,154.09,14.1046]
[1718238175671,259.6,154.22,154.11,8.09]
[1718238175871,8.09,154.17,154.11,8.09]
[1718238176388,19.7917,154.23,154.11,8.09]
[1718238176707,13.6311,154.23,154.11,8.09]
[1718238176859,8.09,154.17,154.11,8.09]
[1718238177989,15.6981,154.25,154.12,21.5713]
[1718238178286,8.09,154.21,154.17,6.5681]
[1718238178665,644.3,154.28,154.17,6.5681]
[1718238178859,24.24,154.27,154.17,6.5681]
[1718238179980,24.24,154.24,154.17,6.5681]
[1718238180186,24.24,154.24,154.15,15.0032]
[1718238180371,24.24,154.21,154.15,15.0032]
[1718238180584,0.17,154.2,154.15,15.0032]
[1718238181392,45.34,154.21,154.15,15.0032]
[1718238182505,0.34,154.21,154.15,15.0032]
[1718238182704,0.17,154.21,154.15,15.0032]
[1718238182908,24.41,154.22,154.15,15.0032]
[1718238183281,0.17,154.22,154.15,15.0032]
[1718238184419,0.34,154.23,154.15,15.0032]
[1718238184575,0.17,154.24,154.15,15.0032]
[1718238184774,24.24,154.25,154.15,15.0032]
[1718238185116,668.54,154.28,154.15,15.0032]
[1718238186590,45.34,154.27,154.16,6.6467]
[1718238187081,0.51,154.26,154.16,6.6467]
[1718238187599,0.17,154.25,154.16,6.6467]
[1718238188103,0.34,154.25,154.16,6.6467]
[1718238188294,0.34,154.24,154.16,6.6467]
[1718238188491,0.17,154.23,154.16,6.6467]
[1718238189704,0.34,154.23,154.16,6.6467]
[1718238190005,0.34,154.22,154.16,6.6467]
[1718238190591,0.17,154.23,154.16,6.6467]
[1718238190797,0.51,154.23,154.16,6.6467]
[1718238191106,0.17,154.23,154.16,6.6467]
[1718238191505,45.0,154.24,154.16,6.6467]
[1718238192011,24.75,154.25,154.16,6.6467]
[1718238192195,24.24,154.25,154.17,16.2651]
[1718238192383,24.24,154.28,154.17,16.2651]
[1718238192589,24.24,154.28,154.19,15.9446]
[1718238193505,13.6311,154.34,154.19,15.9446]
[1718238193687,24.24,154.32,154.19,15.9446]
[1718238194083,25.946916,154.35,154.2,0.17]
[1718238194289,25.946916,154.35,154.23,6.1487]
[1718238194614,25.946916,154.35,154.24,15.5992]
[1718238194981,25.946916,154.35,154.22,0.17]
[1718238194982,25.946916,154.35,154.25,6.2284]
[1718238195189,25.946916,154.35,154.26,16.6448]
[1718238195808,24.24,154.37,154.26,16.6448]
[1718238196326,24.24,154.34,154.26,16.6448]
[1718238196699,0.17,154.36,154.26,16.6448]
[1718238196889,45.68,154.36,154.26,16.6448]
[1718238202930,0.17,154.33,154.26,16.6448]
[1718238203128,45.68,154.33,154.26,16.6448]
[1718238206912,24.24,154.34,154.26,16.6448]
[1718238207105,24.24,154.37,154.26,16.6448]
[1718238207519,283.84,154.39,154.26,16.6448]
[1718238208517,283.84,154.39,154.27,6.4821]
[1718238208724,283.84,154.39,154.28,15.5758]
[1718238209723,0.17,154.38,154.28,15.5758]
[1718238209907,24.24,154.39,154.28,15.5758]
[1718238210114,0.8413107,154.41,154.3,15.599]
[1718238211134,0.8413107,154.41,154.32,15.0733]
[1718238211441,0.8413107,154.41,154.35,15.0733]
[1718238212830,0.17,154.4,154.35,15.0733]
[1718238213019,0.34,154.4,154.35,15.0733]
[1718238213206,24.41,154.39,154.35,15.0733]
[1718238213520,45.51,154.38,154.35,15.0733]
[1718238213831,45.34,154.38,154.35,15.0733]
[1718238214020,45.0,154.38,154.35,15.0733]
[1718238215019,0.8413107,154.41,154.35,15.0733]
[1718238216141,24.24,154.39,154.35,15.0733]
[1718238216938,0.34,154.4,154.35,15.0733]
[1718238217144,0.8413107,154.41,154.35,15.0733]
[1718238217432,45.8413107,154.41,154.35,15.0733]
[1718238218432,0.8413107,154.41,154.35,15.0733]
[1718238219912,0.51,154.4,154.35,15.0733]
[1718238225644,45.8413107,154.41,154.35,15.0733]
[1718238227639,0.8413107,154.41,154.35,15.0733]
[1718238233549,0.8413107,154.41,154.35,15.0733]
[1718238235064,0.51,154.4,154.35,15.0733]
[1718238238343,0.34,154.4,154.35,15.0733]
[1718238238663,0.8413107,154.41,154.35,15.0733]
[1718238242835,8.06,154.4,154.35,15.0733]
[1718238243044,8.06,154.39,154.35,15.0733]
[1718238243355,0.8413107,154.41,154.35,15.0733]
[1718238243356,8.06,154.38,154.35,15.0733]
[1718238244037,8.06,154.37,154.35,15.0733]
[1718238244238,8.06,154.38,154.35,15.0733]
[1718238244654,0.8413107,154.41,154.35,15.0733]
[1718238244655,8.06,154.37,154.35,15.0733]
[1718238244861,0.8413107,154.41,154.35,15.0733]
[1718238245065,0.34,154.4,154.35,15.0733]
[1718238245551,0.34,154.39,154.35,15.0733]
[1718238245754,45.34,154.39,154.35,15.0733]
[1718238246340,45.0,154.39,154.35,15.0733]
[1718238247342,0.34,154.38,154.31,15.3765]
[1718238247658,24.36,154.37,154.31,15.3765]
[1718238247969,45.34,154.36,154.31,15.3765]
[1718238249139,0.17,154.39,154.31,15.3765]
[1718238249347,45.51,154.39,154.31,15.3765]
[1718238249559,0.17,154.38,154.31,15.3765]
[1718238249858,0.8413107,154.41,154.31,15.3765]
[1718238252370,0.8413107,154.41,154.3,6.1842]
[1718238252371,0.8413107,154.41,154.33,16.2799]
[1718238261697,24.19,154.39,154.33,16.2799]
[1718238261963,45.68,154.38,154.33,16.2799]
[1718238262364,45.68,154.38,154.24,16.374]
[1718238263069,24.19,154.36,154.24,16.374]
[1718238263261,45.34,154.35,154.24,16.374]
[1718238265353,45.34,154.35,154.25,0.17]
[1718238265672,0.17,154.38,154.28,15.445]
[1718238265869,45.68,154.38,154.28,15.445]
[1718238267175,45.17,154.38,154.28,15.445]
[1718238267345,284.6313107,154.41,154.29,0.17]
[1718238267546,284.6313107,154.41,154.29,0.51]
[1718238268443,284.6313107,154.41,154.3,22.2871]
[1718238268666,0.17,154.4,154.3,22.2871]
[1718238268870,45.68,154.4,154.3,22.2871]
[1718238277075,77.92,154.4,154.3,30.3471]
[1718238277266,8.06,154.36,154.3,30.3471]
[1718238278499,8.06,154.36,154.3,22.2871]
[1718238278791,8.06,154.36,154.3,30.3471]
[1718238279163,8.06,154.35,154.3,22.2871]
[1718238279366,8.06,154.36,154.3,30.3471]
[1718238281392,45.68,154.4,154.3,30.3471]
[1718238281579,77.75,154.4,154.3,30.3471]
[1718238281889,8.06,154.36,154.3,30.3471]
[1718238282093,8.06,154.37,154.31,8.06]
[1718238282272,45.51,154.4,154.31,8.06]
[1718238282273,8.06,154.36,154.31,8.06]
[1718238285795,45.17,154.4,154.31,8.06]
[1718238285969,8.06,154.37,154.31,8.06]
[1718238287681,8.06,154.36,154.3,30.3471]
[1718238292096,45.0,154.4,154.31,8.06]
[1718238292398,8.06,154.37,154.31,8.06]
[1718238296404,45.0,154.4,154.31,8.06]
[1718238296696,8.06,154.38,154.32,8.06]
[1718238299575,0.8413107,154.41,154.33,8.06]
[1718238299782,8.06,154.39,154.34,8.06]
[1718238300002,0.8413107,154.41,154.34,8.06]
[1718238300299,8.9013107,154.41,154.35,23.7047]
[1718238301485,8.9013107,154.41,154.36,6.5505]
[1718238302190,0.8413107,154.41,154.36,14.6105]
[1718238302490,0.8413107,154.41,154.4,8.06]
[1718238302801,0.8413107,154.41,154.39,15.9407]
[1718238302802,0.8413107,154.41,154.39,24.0007]
[1718238303103,0.8413107,154.41,154.39,15.9407]
[1718238303310,8.9013107,154.41,154.39,15.9407]
[1718238303606,8.06,154.4,154.36,6.5505]
[1718238303792,8.06,154.39,154.36,6.5505]
[1718238304887,8.06,154.38,154.36,6.5505]
[1718238306293,8.06,154.39,154.36,6.5505]
[1718238306603,8.06,154.4,154.36,6.5505]
[1718238307493,0.8413107,154.41,154.36,6.5505]
[1718238307687,0.8413107,154.41,154.36,14.6105]
[1718238307896,8.9013107,154.41,154.36,14.6105]
[1718238308700,0.8413107,154.41,154.36,14.6105]
[1718238309009,0.8413107,154.41,154.38,8.06]
[1718238310508,21.07092197,154.53,154.4,0.17]
[1718238310703,8.06,154.48,154.43,8.06]
[1718238311404,8.06,154.49,154.43,8.06]
[1718238312892,259.6,154.55,154.44,16.6201]
[1718238313108,259.6,154.55,154.44,31.1079]
[1718238313612,8.06,154.5,154.45,8.06]
[1718238314215,259.6,154.55,154.45,8.06]
[1718238314398,259.6,154.55,154.47,8.06]
[1718238314703,8.06,154.52,154.47,8.06]
[1718238315504,259.6,154.55,154.46,8.06]
[1718238315701,8.06,154.52,154.46,8.06]
[1718238316498,8.06,154.51,154.46,8.06]
[1718238317817,259.6,154.55,154.46,8.06]
[1718238318016,8.06,154.52,154.46,8.06]
[1718238318516,259.6,154.55,154.46,8.06]
[1718238318715,8.06,154.52,154.46,8.06]
[1718238319325,8.06,154.52,154.47,8.06]
[1718238319510,8.06,154.53,154.47,8.06]
[1718238319900,8.06,154.53,154.48,8.06]
[1718238320102,259.6,154.55,154.48,8.06]
[1718238321016,8.06,154.53,154.48,8.06]
[1718238321410,259.6,154.55,154.48,8.06]
[1718238321596,8.06,154.54,154.49,22.7231]
[1718238322205,267.66,154.55,154.49,30.7831]
[1718238322504,0.8413107,154.56,154.51,8.06]
[1718238322705,8.9013107,154.56,154.51,8.06]
[1718238322932,8.9013107,154.56,154.5,8.06]
[1718238323796,0.8413107,154.56,154.5,8.06]
[1718238324122,8.06,154.55,154.49,22.7231]
[1718238324424,8.06,154.52,154.49,22.7231]
[1718238324923,8.06,154.54,154.49,22.7231]
[1718238325618,8.06,154.52,154.49,22.7231]
[1718238329115,33.0813107,154.56,154.49,22.7231]
[1718238329414,8.06,154.53,154.49,22.7231]
[1718238330020,8.06,154.54,154.49,22.7231]
[1718238330923,0.8413107,154.56,154.5,8.06]
[1718238330924,8.06,154.55,154.5,8.06]
[1718238331130,0.8413107,154.56,154.5,8.06]
[1718238331311,8.9013107,154.56,154.5,8.06]
[1718238333433,8.06,154.55,154.5,8.06]
[1718238334231,0.8413107,154.56,154.5,8.06]
[1718238334424,8.06,154.55,154.5,8.06]
[1718238335035,8.06,154.55,154.49,30.7831]
[1718238335523,8.06,154.54,154.49,22.7231]
[1718238336107,8.06,154.51,154.49,22.7231]
[1718238336313,8.9013107,154.56,154.49,16.208]
[1718238336314,8.06,154.5,154.49,16.208]
[1718238337026,33.0813107,154.56,154.49,16.208]
[1718238337329,8.06,154.52,154.49,16.208]
[1718238337531,8.06,154.53,154.49,16.208]
[1718238337723,8.06,154.54,154.49,16.208]
[1718238337936,0.8413107,154.56,154.49,24.268]
[1718238338236,8.06,154.55,154.49,24.268]
[1718238338526,0.8413107,154.56,154.49,24.268]
[1718238338723,8.06,154.55,154.49,24.268]
[1718238339104,8.9013107,154.56,154.49,16.208]
[1718238339308,8.06,154.55,154.5,8.06]
[1718238339522,8.06,154.55,154.49,16.208]
[1718238339733,8.06,154.54,154.49,16.208]
[1718238340811,0.8413107,154.56,154.49,16.208]
[1718238341014,8.06,154.54,154.49,16.208]
[1718238341530,8.06,154.55,154.5,8.06]
[1718238341733,8.9013107,154.56,154.5,8.06]
[1718238341931,0.8413107,154.56,154.5,8.06]
[1718238342230,8.9013107,154.56,154.51,6.5452]
[1718238342407,8.9013107,154.56,154.51,14.6052]
[1718238343232,0.8413107,154.56,154.51,14.6052]
[1718238343444,8.9013107,154.56,154.51,14.6052]
[1718238344122,8.9013107,154.56,154.51,6.5452]
[1718238348715,0.8413107,154.56,154.51,14.6052]
[1718238355130,0.8413107,154.56,154.53,8.06]
[1718238355339,0.8413107,154.56,154.55,24.6185]
[1718238355652,0.8413107,154.56,154.55,25.91223484]
[1718238355946,0.8413107,154.56,154.55,24.6185]
[1718238359829,0.3413107,154.56,154.55,24.6185]
[1718238360450,0.3413107,154.56,154.55,16.5585]
[1718238361225,0.3413107,154.56,154.55,24.6185]
[1718238364026,0.3413107,154.56,154.55,16.5585]
[1718238364730,0.3413107,154.56,154.55,24.6185]
[1718238364926,11.47552432,154.69,154.57,6.3949]
[1718238364927,14.8134,154.69,154.57,6.3949]
[1718238365155,8.06,154.64,154.59,8.06]
[1718238367652,8.06,154.64,154.58,8.06]
[1718238368658,8.06,154.63,154.58,8.06]
[1718238371057,8.06,154.64,154.58,8.06]
[1718238372169,14.8134,154.69,154.58,0.17]
[1718238372337,8.06,154.67,154.61,23.7507]
[1718238372650,8.06,154.68,154.62,8.06]
[1718238373052,259.6,154.71,154.62,8.06]
[1718238373431,8.06,154.68,154.62,8.06]
[1718238374639,45.0,154.7,154.62,8.06]
[1718238374841,8.06,154.68,154.62,8.06]
[1718238375234,8.06,154.68,154.61,15.6907]
[1718238375432,8.06,154.66,154.61,15.6907]
[1718238375730,33.0813107,154.72,154.61,23.7507]
[1718238376048,8.06,154.66,154.61,15.6907]
[1718238376244,0.17,154.71,154.61,15.6907]
[1718238376546,8.06,154.64,154.61,15.6907]
[1718238377139,45.68,154.71,154.61,15.6907]
[1718238377350,8.06,154.64,154.61,15.6907]
[1718238377948,45.68,154.71,154.61,15.6907]
[1718238378154,8.06,154.64,154.61,15.6907]
[1718238379147,8.06,154.64,154.57,21.9682]
[1718238379347,100.0,154.7,154.57,21.9682]
[1718238379348,8.06,154.61,154.57,21.9682]
[1718238380063,8.06,154.62,154.57,21.9682]
[1718238380464,0.17,154.66,154.57,21.9682]
[1718238380765,8.06,154.62,154.57,21.9682]
[1718238380945,8.06,154.6,154.49,16.1874]
[1718238381143,8.06,154.57,154.49,16.1874]
[1718238381542,8.06,154.57,154.51,8.06]
[1718238383891,14.8133,154.6,154.5,6.4202]
[1718238384168,14.8133,154.6,154.49,16.1874]
[1718238384169,8.06,154.52,154.49,16.1874]
[1718238384398,0.34,154.58,154.49,16.1874]
[1718238384662,8.06,154.52,154.49,16.1874]
[1718238385955,8.06,154.53,154.49,16.1874]
[1718238386264,0.17,154.58,154.5,8.06]
[1718238386469,8.06,154.57,154.51,8.06]
[1718238387081,8.06,154.57,154.52,8.06]
[1718238387445,8.06,154.57,154.51,8.06]
[1718238387855,8.06,154.56,154.5,8.06]
[1718238388051,8.06,154.55,154.49,24.2474]
[1718238388478,8.06,154.57,154.51,8.06]
[1718238388646,8.06,154.56,154.51,8.06]
[1718238389784,6.5823,154.61,154.51,8.06]
[1718238389951,8.06,154.58,154.52,8.06]
[1718238390275,0.34,154.61,154.49,16.1874]
[1718238390276,8.06,154.59,154.53,8.06]
[1718238390473,47.0533,154.64,154.54,8.06]
[1718238390683,8.06,154.59,154.54,8.06]
[1718238391388,47.0533,154.64,154.54,8.06]
[1718238391600,8.06,154.6,154.55,15.3245]
[1718238392090,8.06,154.61,154.55,23.3845]
[1718238393077,8.06,154.62,154.56,8.06]
[1718238394698,14.8133,154.68,154.56,8.06]
[1718238394994,8.06,154.62,154.56,8.06]
[1718238396365,8.06,154.62,154.57,8.06]
[1718238400101,45.0,154.67,154.57,8.06]
[1718238400305,8.06,154.62,154.57,8.06]
[1718238401397,7.56,154.62,154.57,8.06]
[1718238401994,0.34,154.66,154.57,8.06]
[1718238402197,8.06,154.62,154.57,8.06]
[1718238404199,0.34,154.66,154.57,8.06]
[1718238404400,8.06,154.62,154.57,8.06]
[1718238404770,0.34,154.66,154.57,8.06]
[1718238404975,8.06,154.64,154.58,8.06]
[1718238405473,45.0,154.67,154.57,8.06]
[1718238405692,45.0,154.67,154.56,0.17]
[1718238405693,0.34,154.68,154.59,8.06]
[1718238405893,8.06,154.65,154.59,8.06]
[1718238406925,8.06,154.65,154.58,6.216]
[1718238407078,8.06,154.63,154.58,6.216]
[1718238407279,8.06,154.62,154.58,6.216]
[1718238407675,8.06,154.63,154.58,6.216]
[1718238408588,8.06,154.63,154.58,14.276]
[1718238410890,45.34,154.69,154.6,8.06]
[1718238411095,8.06,154.65,154.6,8.06]
[1718238411590,45.34,154.69,154.6,8.06]
[1718238411797,8.06,154.65,154.6,8.06]
[1718238412376,45.34,154.69,154.6,8.06]
[1718238412802,8.06,154.65,154.6,8.06]
[1718238413108,45.34,154.69,154.6,8.06]
[1718238413310,8.06,154.65,154.6,8.06]
[1718238415419,45.34,154.69,154.6,8.06]
[1718238415720,8.06,154.65,154.6,8.06]
[1718238415896,45.34,154.69,154.6,8.06]
[1718238416095,8.06,154.64,154.59,8.06]
[1718238417093,8.06,154.64,154.58,6.216]
[1718238417292,8.06,154.63,154.58,6.216]
[1718238418817,8.06,154.65,154.59,8.06]
[1718238419024,8.06,154.64,154.58,14.276]
[1718238420401,8.06,154.64,154.58,6.216]
[1718238420603,0.17,154.68,154.58,14.276]
[1718238420905,8.06,154.64,154.58,14.276]
[1718238421498,8.06,154.64,154.59,8.06]
[1718238421933,0.17,154.68,154.59,8.06]
[1718238422093,8.06,154.63,154.58,6.216]
[1718238422299,8.06,154.6,154.55,15.3245]
[1718238422906,8.06,154.58,154.55,15.3245]
[1718238423516,8.06,154.59,154.55,15.3245]
[1718238423710,8.06,154.6,154.55,15.3245]
[1718238425624,0.17,154.63,154.55,15.3245]
[1718238425807,8.06,154.61,154.55,23.3845]
[1718238426208,8.06,154.6,154.55,15.3245]
[1718238428908,8.06,154.64,154.55,15.3245]
[1718238428909,8.06,154.57,154.55,15.3245]
[1718238430319,8.06,154.57,154.51,15.7863]
[1718238430501,0.17,154.61,154.51,15.7863]
[1718238430502,8.06,154.55,154.51,15.7863]
[1718238430708,8.06,154.54,154.51,15.7863]
[1718238431013,8.06,154.54,154.43,11.54662496]
[1718238431014,8.06,154.53,154.43,6.1041]